{"text_format":"1","workbook":"xlsx","n_sheets":16,"sheets":["LISTA JEDNOSTEK","NPP i NPO","PSYCHOLOGICZNO-PEDAGOGICZNE","POMOC SPOŁECZNA","PRZEMOC DOMOWA","PROBLEM UZALEŻNIEŃ","INTERWENCJA KRYZYSOWA","POMOC DLA OSÓB BEZROBOTNYCH","POKRZYWDZENI PRZESTĘPSTWEM","PRAWO KONSUMENCKIE","PRAWA PACJENTA","PRAWA OBYWATELSKIE I DZIECKA","PRAWO UBEZPIECZEŃ SPOŁECZNYCH","PRAWO PRACY","PRAWO PODATKOWE","RZECZNIK PRAW FINANSOWYCH "],"not_rendered":{"charts":0,"images":10,"macros":1,"external_links":0,"defined_names":4,"comments":0,"pivot_tables":0},"unopened":[],"bounds":{"document_bytes":16777216,"sheet_cells":100000,"rows_first":2000,"rows_last":500,"rows_between":2000,"halvings":0,"cell_chars":16384,"cell_head_chars":4096},"cells_cut":0,"cells_raw":0,"read":"whole","date_system":"1900"}

{"sheet":"LISTA JEDNOSTEK","index":0,"n_rows":31,"n_cols":3,"rows_kept":31,"cut":false,"hidden":false,"merged":[[0,0,0,19]]}
["             LISTA JEDNOSTEK NIEODPŁATNEGO PORADNICTWA"]
[]
[null,"F","NIEODPŁATNA POMOC PRAWNA (NPP) i NIEODPŁATNE PORADNCITWO OBYWATELSKIE (NPO)"]
[]
[null,"F","PORADNICTWO PSYCHOLOGICZNO-PEDAGOGICZNE"]
[]
[null,"F","POMOC SPOŁECZNA"]
[]
[null,"F","PRZECIW DZIAŁANIE PRZEMOCY DOMOWEJ"]
[]
[null,"F","ROZWIĄZYWANIE PROBLEMÓW ALKOCHOLOWYCH I INNYCH UZALEŻNIEŃ"]
[]
[null,"F","INTERWENCJA KRYZYSOWA"]
[]
[null,"F","PORADNICTWO DLA OSÓB BEZROBOTNYCH"]
[]
[null,"F","PORADNICTWO DLA OSÓB POKRZYWDZONYCH PRZESTĘPSTWEM"]
[]
[null,"F","PRAWO KONSUMENCKIE"]
[]
[null,"F","PRAWA PACJENTA"]
[]
[null,"F","PRAWA OBYWATELSKIE I PRAWA DZIECKA"]
[]
[null,"F","PRAWO UBEZPIECZEŃ SPOŁECZNYCH"]
[]
[null,"F","PRAWO PRACY"]
[]
[null,"F","PRAWO PDATKOWE"]
[]
[null,"F","RZECZNIK PRAW FINANSOWYCH - DLA OSÓB BEDĄCYCH W SPORZE Z PODMIOTAMI RYNKU FINSNOWEGO"]

{"sheet":"NPP i NPO","index":1,"n_rows":7,"n_cols":7,"rows_kept":7,"cut":false,"hidden":false,"merged":[[0,0,0,6]]}
["NIEODPŁATNA POMOC PRAWNA (NPP) i NIEODPŁATNE PORADNCITWO OBYWATELSKIE (NPO)"]
["POWRÓT DO LISTY","Nazwa jednostki","Zakres poradnictwa","Adres, dane kontaktowe","Godziny pracy","Kryteria dostępu do usługi","Uwagi"]
["Publiczna","Punkt nieodpłatnej pomocy prawnej w Knurowie (NPP)","1. Nieodpłatna pomoc prawna obejmuje:\n1)  poinformowanie osoby fizycznej, zwanej dalej \"osobą uprawnioną\", \no obowiązującym stanie prawnym oraz przysługujących jej uprawnieniach lub spoczywających na niej obowiązkach, w tym w związku z toczącym się postępowaniem przygotowawczym, administracyjnym, sądowym lub sądowoadministracyjnym lub,\n2) wskazanie osobie uprawnionej sposobu rozwiązania jej problemu prawnego, lub\n3) sporządzenie projektu pisma w sprawach z wyłączeniem pism procesowych w toczącym się postępowaniu przygotowawczym lub sądowym i pism w toczącym się postępowaniu sądowoadministracyjnym, lub,\n3a) nieodpłatną mediację - nie dotyczy 2019 r.\n4) sporządzenie projektu pisma o zwolnienie od kosztów sądowych lub ustanowienie pełnomocnika z urzędu w postępowaniu sądowym lub ustanowienie adwokata, radcy prawnego, doradcy podatkowego lub rzecznika patentowego\n w postępowaniu sądowoadministracyjnym oraz poinformowanie o kosztach postępowania i ryzyku finansowym związanym ze skierowaniem sprawy na drogę sądową.\n2. Nieodpłatna pomoc prawna nie obejmuje spraw związanych z prowadzeniem działalności gospodarczej, z wyjątkiem przygotowania do rozpoczęcia tej działalności.","ul. Szpitalna 29,\n44-194 Knurów\ntel. 32 338 37 29,\nnpp@starostwo.gliwice.pl\n\n\n\n\n\n","Termin wizyty ustalany jest telefonicznie\n 32 338 37 29 \n\nlub mailowo\nnpp@starostwo.gliwice.pl\n\n\nPoniedziałek - Wtorek \nod 9.00 do 13.00\n Środa - Czwartek \nod 13.00 do 17.00,\nPiątek \nod 8.30 do 12.30","Nieodpłatna pomoc prawna przysługują osobie uprawnionej, która nie jest w stanie ponieść kosztów odpłatnej pomocy prawnej.","Przy wejściu głównym znajduje się podjazd ułatwiający wjazd do budynku\ndrzwi wejściowe szerokie umożliwiają swobodny wjazd wózka inwalidzkiego"]
["Publiczna","Punkt nieodpłatnej pomocy prawnej w Pyskowicach","1. Nieodpłatna pomoc prawna obejmuje:\n1)  poinformowanie osoby fizycznej, zwanej dalej \"osobą uprawnioną\", \no obowiązującym stanie prawnym oraz przysługujących jej uprawnieniach lub spoczywających na niej obowiązkach, w tym w związku z toczącym się postępowaniem przygotowawczym, administracyjnym, sądowym lub sądowoadministracyjnym lub,\n2) wskazanie osobie uprawnionej sposobu rozwiązania jej problemu prawnego, lub\n3) sporządzenie projektu pisma w sprawach z wyłączeniem pism procesowych w toczącym się postępowaniu przygotowawczym lub sądowym i pism w toczącym się postępowaniu sądowoadministracyjnym, lub,\n3a) nieodpłatną mediację - nie dotyczy 2019 r.\n4) sporządzenie projektu pisma o zwolnienie od kosztów sądowych lub ustanowienie pełnomocnika z urzędu w postępowaniu sądowym lub ustanowienie adwokata, radcy prawnego, doradcy podatkowego lub rzecznika patentowego\n w postępowaniu sądowoadministracyjnym oraz poinformowanie o kosztach postępowania i ryzyku finansowym związanym ze skierowaniem sprawy na drogę sądową.\n2. Nieodpłatna pomoc prawna nie obejmuje spraw związanych z prowadzeniem działalności gospodarczej, z wyjątkiem przygotowania do rozpoczęcia tej działalności.","ul. Strzelców Bytomskich 3\n44-120 Pyskowice\ntel. 32 338 37 29,\nnpp@starostwo.gliwice.pl\n","Termin wizyty ustalany jest telefonicznie\n 32 338 37 29 \n\nlub mailowo\nnpp@starostwo.gliwice.pl\n\n\nPoniedziałek - Środa\n od 11.30 do 15.30,\nCzwartek \nod 13.30 do 17.30,\nPiątek \nod 9.00 do 13.00","Nieodpłatna pomoc prawna przysługują osobie uprawnionej, która nie jest w stanie ponieść kosztów odpłatnej pomocy prawnej.","Przy wejściu głównym znajduje się podjazd ułatwiający wjazd do budynku\ndrzwi wejściowe szerokie umożliwiają swobodny wjazd wózka inwalidzkiego"]
["Publiczna","Punkt nieodpłatnego poradnictwa obywatelskiego w Sośnicowicach\n(NPO)","Zakres nieodpłatnego poradnictwa obywatelskiego:\n1.  Nieodpłatne poradnictwo obywatelskie obejmuje działania dostosowane do indywidualnej sytuacji osoby uprawnionej, zmierzające do podniesienia świadomości tej osoby o przysługujących jej uprawnieniach lub spoczywających na niej obowiązkach oraz wsparcia w samodzielnym rozwiązywaniu problemu, w tym, w razie potrzeby, sporządzenie wspólnie z osobą uprawnioną planu działania i pomoc w jego realizacji. Nieodpłatne poradnictwo obywatelskie obejmuje w szczególności porady dla osób zadłużonych i porady z zakresu spraw mieszkaniowych oraz zabezpieczenia społecznego.\n2.  Nieodpłatne poradnictwo obywatelskie obejmuje również nieodpłatną mediację.","ul. Szprynek 1,\n44-153 Sośnicowice,\ntel. 32 338 37 29,\nnpp@starostwo.gliwice.pl","Termin wizyty ustalany jest telefonicznie\n 32 338 37 29 \n\nlub mailowo\nnpp@starostwo.gliwice.pl\n\nPoniedziałek\n od 13.00 do 17.00\nWtorek, Środa, Czwartek, Piątek\nod 9.00 do 13.00","Obywatele RP","Budynek przystosowany\ndla osób niepełnosprawnych -parking, winda"]
["Publiczna","Punkt nieodpłatnego poradnictwa obywatelskiego w Rudzińcu (NPO)","Zakres nieodpłatnego poradnictwa obywatelskiego:\n1.  Nieodpłatne poradnictwo obywatelskie obejmuje działania dostosowane do indywidualnej sytuacji osoby uprawnionej, zmierzające do podniesienia świadomości tej osoby o przysługujących jej uprawnieniach lub spoczywających na niej obowiązkach oraz wsparcia w samodzielnym rozwiązywaniu problemu, w tym, w razie potrzeby, sporządzenie wspólnie z osobą uprawnioną planu działania i pomoc w jego realizacji. Nieodpłatne poradnictwo obywatelskie obejmuje w szczególności porady dla osób zadłużonych i porady z zakresu spraw mieszkaniowych oraz zabezpieczenia społecznego.\n2.  Nieodpłatne poradnictwo obywatelskie w 2019 roku nie obejmuje nieodpłatnej mediac.","ul. Gliwicka 26\n44-160 Rudziniec,\ntel. 32 338 37 29,\nnpp@starostwo.gliwice.pl","Termin wizyty ustalany jest telefonicznie\n 32 338 37 29 \n\nlub mailowo\nnpp@starostwo.gliwice.pl\n\n\nPoniedziałek, Wtorek, Czwartek, Piątek\nod 9.00 do 13.00\nŚroda \nod 13.00 do 17.00","Nieodpłatna pomoc prawna i nieodpłatne\n poradnictwo obywatelskie przysługują osobie uprawnionej, która nie jest w stanie ponieść kosztów odpłatnej pomocy prawnej.","Budynek przystosowany\ndla osób niepełnosprawnych - parter"]
["Publiczna","Punkt nieodpłatnej pomocy prawnej w Wielowsi (NPP)","1. Nieodpłatna pomoc prawna obejmuje:\n1)  poinformowanie osoby fizycznej, zwanej dalej \"osobą uprawnioną\", \no obowiązującym stanie prawnym oraz przysługujących jej uprawnieniach lub spoczywających na niej obowiązkach, w tym w związku z toczącym się postępowaniem przygotowawczym, administracyjnym, sądowym lub sądowoadministracyjnym lub,\n2) wskazanie osobie uprawnionej sposobu rozwiązania jej problemu prawnego, lub\n3) sporządzenie projektu pisma w sprawach z wyłączeniem pism procesowych w toczącym się postępowaniu przygotowawczym lub sądowym i pism w toczącym się postępowaniu sądowoadministracyjnym, lub,\n3a) nieodpłatną mediację - nie dotyczy 2019 r.\n4) sporządzenie projektu pisma o zwolnienie od kosztów sądowych lub ustanowienie pełnomocnika z urzędu w postępowaniu sądowym lub ustanowienie adwokata, radcy prawnego, doradcy podatkowego lub rzecznika patentowego\n w postępowaniu sądowoadministracyjnym oraz poinformowanie o kosztach postępowania i ryzyku finansowym związanym ze skierowaniem sprawy na drogę sądową.\n2. Nieodpłatna pomoc prawna nie obejmuje spraw związanych z prowadzeniem działalności gospodarczej, z wyjątkiem przygotowania do rozpoczęcia tej działalności.","ul. Główna 1\n44-187 Wielowieś,\ntel. 32 338 37 29,\nnpp@starostwo.gliwice.pl\n","Termin wizyty ustalany jest telefonicznie\n 32 338 37 29 \n\nlub mailowo\nnpp@starostwo.gliwice.pl\n\nPoniedziałek - Wtorek \nod 14.00 do 18.00\n\nŚroda - Piątek\nod 8.00 do 12.00","Nieodpłatna pomoc prawna przysługują osobie uprawnionej, która nie jest w stanie ponieść kosztów odpłatnej pomocy prawnej.","Budynk przystosowany\ndla osób przy wejściu głównym znajduje się podjazd ułatwiający wjazd do budynku\n"]

{"sheet":"PSYCHOLOGICZNO-PEDAGOGICZNE","index":2,"n_rows":13,"n_cols":7,"rows_kept":13,"cut":false,"hidden":false,"merged":[[0,0,0,6]]}
["PSYCHOLOGICZNO-PEDAGOGICZNE"]
["POWRÓT DO LISTY","Nazwa jednostki",{"$f":"UPPER(\"zakres poradnictwa\")","v":"ZAKRES PORADNICTWA"},"Adres\ntelefon\nwww, e-mail","Dni i godziny pracy",{"$f":"UPPER(\"kryteria dostepu do usługi\")","v":"KRYTERIA DOSTEPU DO USŁUGI"},"Uwagi"]
["Publiczna","Poradnia Psychologiczno\n- Pedagogiczna w Knurowie","Diagnoza i terapia dzieci i młodzieży, programy profilaktyczno - wychowawcze w placówkach terenowych, treningi umiejętności wychowawczych dla rodziców.\n\nW szczególności: diagnozowanie, opiniowanie, działalność terapeutyczna, grupy wsparcia, mediacje, interwencja kryzysowa, działalność profilaktyczna, poradnictwo, konsultacje. \n\n","ul. Kosmonautów 5a\n44-194 Knurów,\ntel. 32 235 14 76,\n\nporadniaknurow@powiatgliwicki.pl,\nwww.pppknurow.drl.pl","Godziny pracy sekretariatu:\n Poniedziałek - Piątek \nod 8.00 do 15.00","\nPoradnia  udziela pomocy dzieciom uczęszczającym do szkół mających siedzibę na terenie Powiatu Gliwickiego, ich rodzicom  oraz nauczycielom.\n\nRejonizacja: Knurów, Gierałtowice, \nPilchowice, Sośnicowice","Poradnia zatrudnia psychologów, pedagogów, surdopedagogów, tyflopedagogów, oligofrenopedagogów, logopedów, neurologopedów, doradców zawodowych oraz lekarza medycyny."]
["Publiczna","Poradnia Psychologiczno\n- Pedagogiczna w Pyskowicach","Diagnozowanie dzieci i młodzieży.\n\nUdzielanie dzieciom i młodzieży oraz rodzicom bezpośredniej pomocy psychologiczno- pedagogicznej.\n\nRealizowanie zadań profilaktycznych oraz wspierających wychowawczą i edukacyjną funkcję przedszkola, szkoły i placówki, w tym wspieranie nauczycieli w rozwiązywaniu problemów dydaktycznych i wychowawczych.\n\nOrganizowanie i prowadzenie wspomagania przedszkoli, szkół i placówek \nw zakresie realizacji zadań dydaktycznych, wychowawczych i opiekuńczych.\n\nDiagnozowanie dzieci i młodzieży prowadzone w celu określenia indywidualnych potrzeb rozwojowych i edukacyjnych oraz indywidualnych możliwości psychofizycznych, wyjaśnienia mechanizmów ich funkcjonowania w odniesieniu do zgłaszanego problemu oraz wskazania sposobu rozwiązania tego problemu.","ul. Kardynała Stefana Wyszyńskiego 37\n44-120 Pyskowice,\n\ntel. 32 233 32 23,\n\nppppyskowice@powiatgliwicki.pl,\nwww.ppp-pyskowice.pl","Poniedziałek - Piątek\nod 7.30.00 do 17.00","Poradnia  udziela pomocy dzieciom uczęszczającym do szkół mających siedzibę na terenie Powiatu Gliwickiego, ich rodzicom  oraz nauczycielom.\n\nRejonizacja: Pyskowice, Wielowieś, \nRudziniec, Toszek","Poradnia zatrudnia psychologów, pedagogów, surdopedagogów, tyflopedagogów, oligofrenopedagogów, logopedów, neurologopedów, doradców zawodowych."]
["Publiczna","Samodzielny Publiczny Zakład Opieki Zdrowotnej Szpital Psychiatryczny w Toszku","Diagnoza i leczenie psychiatryczne, pomoc psychologiczna psychoterapeutyczna, Leczenie alkoholowych zespołów abstynencyjnych (detoksykacja), stacjonarne świadczenie terapii uzależnienia od alkoholu.","ul. Gliwicka 5\n44-180 Toszek,\ntel. (32) 233 41 12,\ninfo@szpitaltoszek.pl","Całą dobę","Skierowane do osób wymagających specjalistycznego świadczenia zdrowotnego \na w szczególności psychiatrycznych usług lecznictwa stacjonarnego i ambulatoryjnego."]
["Niepubliczna","Poradnia Psychologiczno - Pedagogiczna Geneza \nw Knurowie","Pomoc psychologiczna, pedagogiczna.\nDiagnoza i terapia dzieci i młodzieży","ul. Bolesława Chrobrego 11A,\n44 - 194 Knurów,\ntel.  32 321 28 54,","Od poniedziałku do piątku \nod 10.00 do 20.00","Z usługi Poradni mogą korzystać:\ndzieci, młodzież i dorośli, nauczyciele, wychowawcy, specjaliści z placówek oświatowych, przedstawiciele instytucji i organizacji pracujących z dziećmi i młodzieżą oraz na rzecz dzieci i młodzieży.","Korzystanie z poradni jest dobrowolne i odpłatne, bądź też dofinansowane z uprawnionych do tego instytucji. "]
["Organizacja\nPozarządowa","Fundacja ITAKA Centrum Poszukiwań Ludzi Zaginionych","Pomoc psychologiczna, pomoc socjalna, pomoc prawna, wsparcie i pomoc osobom zaginionym i ich rodzinom","skr. pocztowa 127\n00-958 Warszawa 66\nLinia Wsparcia 22 654 70 70\n\ntel. w Sprawie Zaginionego Dziecka i Nastolatka \n116 000\n\nbiuro@zaginieni.pl\nwww.itaka.org.pl","\nPoniedziałek - Piątek \nod 13.00 do 17.00\n    w każdą Sobotę i Niedzielę  od 11.00 do 13.00\n\n","Obywatele RP"]
["Organizacja\nPozarządowa","Stowarzyszenia MONAR","Poradnictwo psychologiczne, terapeutyczne, pomoc w rozwiązywaniu problemów związanych z uzależnieniem","ul. Nowolipki 9B\n00-151 Warszawa\ntel. 22 635 95 09,\n22 635 13 26,\n22 635 94 37,\n\nbiuro@monar.org\nhttp://www.monar.org","Poniedziałek - Piątek \nod 7.30 do15.30","Obywatele RP"]
["Organizacja\nPozarządowa","Polskie Towarzystwo Zapobiegania Narkomanii ODDZIAŁ KATOWICE","Poradnictwo psychologiczne, terapeutyczne, pomoc w rozwiązywaniu problemów związanych z uzależnieniem","ul. Warszawska 19 \n40 - 009 Katowice\ntel. 783 225 330\nrzata@tlen.pl\ntzn.katowice@neostrada.pl           biuro@ptzn.katowice.pl "," Poniedziałek 10.00 -19.00\n Wtorek  15.00 - 19.00\n  Środa 10.00 - 14.00\n  Czwartek 10.00 - 19.00\n  Piątek 15.00 - 19.00","Obywatele RP"]
["Organizacja\nPozarządowa","Stowarzyszenie Centrum Terapii Dziecięcej TĘCZA\nw Knurowie","Pomoc terapeutyczna, psychologiczna, pedagogiczna dzieci i młodzieży","ul. Wincentego Witosa 23\n44-196 Knurów,\ntel. 692 434 342,\n\nbiuro@tęczaknurów.pl\nwww.tęczaknurów.pl","Kontakt telefoniczny \nlub mailowy","Stowarzyszenie obejmuje swoim działaniem obszar Rzeczpospolitej Polskiej, ze szczególnym uwzględnieniem Knurowa, gmin  powiatu gliwickiego oraz województwa śląskiego, a także prowadzi działalność poza granicami Rzeczpospolitej Polskiej, jeżeli wymaga tego prawidłowa\nrealizacja celów Stowarzyszenia.","Stowarzyszenie realizuje swoje\n cele poprzez prowadzenie działalności pożytku publicznego na rzecz ogółu społeczności w formie odpłatnej i nieodpłatnej."]
["Organizacja\nPozarządowa","Klub Abstynentów\n \"Krokus\"","Pomoc psychologiczna osobom uzależnionym i ich rodzinom.\n","ul. Daszyńskiego 28\n44-100 Gliwice\ntel.:32 231 57 65\n(tylko w godzinach otwarcia) \nlub 515 528 072 (od 7.00 do 21.00) \n\nkakrokusgliwice@gmail.com\nhttp://www.krokus-gliwice.org","Wtorek - Czwartek\n od 14.00 do 20.00","Obywatele RP"]
["Organizacja\nPozarządowa","Śląska Fundacja Ochrony\n Zdrowia Psychicznego „Parasol”","Podejmowanie działań z zakresu ochrony i zachowania zdrowia psychicznego, rozwijanie zachowań i umiejętności pozwalających na radzenie sobie w sytuacjach zagrażających zdrowiu psychicznemu z wykorzystaniem osobistych zasobów, wspieranie rozwoju osobistego, ze szczególnym uwzględnieniem tworzenia i utrzymania satysfakcjonujących relacji osobistych, rodzinnych i społecznych,","ul. Zwycięstwa 1\n44-100 Gliwice\ntel. 500-283-338\n\nparasol.fundacja@gmail.com","Kontakt telefoniczny lub mailowy","Obywatele RP"]
["Organizacja\nPozarządowa","Fundacja „Arka Noego”  \nw Gliwicach. ","Pomoc terapeutyczna, psychologiczna osobom uzależnionym od alkoholu i narkotyków.","Siedziba Fundacji  Arka Noego\n44-100 Gliwice\nul. Barlickiego 3\n\n Aktualnie Fundacja prowadzi dwie placówki terapii ambulatoryjnej:\nKnurów ul. Legionów 2 (przychodnia Regimed)\nGliwice ul. Barlickiego 3 \n(Młodzieżowy Dom Kultury) ","\nRejestracja telefoniczna \n668 630 980 ","Obywatele RP"]

{"sheet":"POMOC SPOŁECZNA","index":3,"n_rows":11,"n_cols":7,"rows_kept":11,"cut":false,"hidden":false,"merged":[[0,1,0,6]]}
[null,"POMOC SPOŁECZNA"]
["POWRÓT DO LISTY","Nazwa jednostki",{"$f":"UPPER(\"zakres poradnictwa\")","v":"ZAKRES PORADNICTWA"},"Adres\ntelefon\nwww, e-mail","Dni i godziny pracy",{"$f":"UPPER(\"kryteria dostepu do usługi\")","v":"KRYTERIA DOSTEPU DO USŁUGI"},"Uwagi"]
["Publiczna","\nPowiatowe Centrum Pomocy Rodzinie w Gliwicach, \nZespół Poradnictwa Specjalistycznego i Interwencji Kryzysowej","Poradnictwo rodzinne. \nPomoc psychologiczna, terapeutyczna, prawna, socjalna, pedagogiczna, interwencja kryzysowa, profilaktyka, psychoedukacja. Realizowanie programu korekcyjno-edukacyjnego dla sprawców przemocy.","ul. Zygmunta Starego 17,\n44-100 Gliwice,\ntel. 32 332 66 77,\n32 332 66 16,\n\npcpr_gliwice@powiatgliwicki.pl\nwww.pcpr-gliwice.pl","Poniedziałek, Wtorek, Środa\n7.30 - 15.30\nCzwartek \n7.30 - 17.30\nPiątek \n7.30 - 13.30","Osoby zamieszkujące Powiat Gliwicki"]
["Publiczna","Miejski Ośrodek Pomocy\n Społecznej w Knurowie","Poradnictwo rodzinne\nPomoc psychologiczna, terapeutyczna, prawna, socjalna, pedagogiczna, interwencja kryzysowa, , mediacje, profilaktyka, psychoedukacja, treningi umiejętności rodzicielskich.","ul. Ks. A. Koziełka 2, \n44-194 Knurów\ntel. 32 335 50 11,\n32 335 50 00\n\nops@knurow.pl,\nwww.mopsknurow.pl","Poniedziałek, Wtorek, Środa \n 7:30 - 15:30 \nCzwartek\n 7:30 - 15:30\nPiątek\n7:30 - 13:30","Pomocy społecznej udziela się osobom i rodzinom w szczególności z powodu:\n1. ubóstwa;\n2. sieroctwa;\n3. bezdomności;\n4. bezrobocia;\n5. niepełnosprawności;\n6. długotrwałej lub ciężkiej choroby;\n7. przemocy w rodzinie;\n8. potrzeby ochrony ofiar handlu ludźmi;\n9. potrzeby ochrony macierzyństwa lub wielodzietności;\n10. bezradności w sprawach opiekuńczo-wychowawczych i prowadzenia gospodarstwa domowego, zwłaszcza w rodzinach niepełnych lub wielodzietnych;\n11. trudności w integracji cudzoziemców, którzy uzyskali w Rzeczypospolitej Polskiej status uchodźcy lub ochronę uzupełniającą;\n12. trudności w przystosowaniu do życia po zwolnieniu z zakładu karnego;\n13. alkoholizmu lub narkomanii;\n14. zdarzenia losowego i sytuacji kryzysowej;\n15. klęski żywiołowej lub ekologicznej.\nRejonizacja - Gmina Knurów."]
["Publiczna","Gminny Ośrodek Pomocy Społecznej w Pilchowicach\n ","Poradnictwo rodzinne, pomoc socjalna. Praca w ramach Zespołów Interdyscyplinarnych i grup roboczych.","ul. Damrota 6\n44-145 Pilchowice,\n tel. 32/332 71 62\n 32/332 71 65, \n\nkierownik.ops@pilchowice.pl,\nwww.opspilchowice.pl\n","Poniedziałek, Wtorek, Środa: \n7.00 - 15.00\nCzwartek: 7.00 - 17.00\n Piątek: 7.00 - 13.00","Pomocy społecznej udziela się osobom i rodzinom w szczególności z powodu:\n1. ubóstwa;\n2. sieroctwa;\n3. bezdomności;\n4. bezrobocia;\n5. niepełnosprawności;\n6. długotrwałej lub ciężkiej choroby;\n7. przemocy w rodzinie;\n8. potrzeby ochrony ofiar handlu ludźmi;\n9. potrzeby ochrony macierzyństwa lub wielodzietności;\n10. bezradności w sprawach opiekuńczo-wychowawczych i prowadzenia gospodarstwa domowego, zwłaszcza w rodzinach niepełnych lub wielodzietnych;\n11. trudności w integracji cudzoziemców, którzy uzyskali w Rzeczypospolitej Polskiej status uchodźcy lub ochronę uzupełniającą;\n12. trudności w przystosowaniu do życia po zwolnieniu z zakładu karnego;\n13. alkoholizmu lub narkomanii;\n14. zdarzenia losowego i sytuacji kryzysowej;\n15. klęski żywiołowej lub ekologicznej.\nRejonizacja - Gmina Pilchowice."]
["Publiczna","Ośrodek Pomocy Społecznej\n w Pyskowicach","Poradnictwo rodzinne, Pomoc socjalna. Praca w ramach Zespołu Interdyscyplinarnego i Grup roboczych. W ramach prac GKRPA są udzielane porady prawne i psychologiczne dla  mieszkańców gminy Pyskowice. \n\nWspółpraca pracownika socjalnego głównie z osobą doświadczającą przemocy.\n\nW ramach zespołów interdyscyplinarnych motywowanie osób stosujących przemoc do zmiany zachowania i uczestnictwa w programie korekcyjno-edukacyjnym. \nW ramach grup roboczych rozmowy motywujące z osobą stosującą przemoc.","ul. Cicha 1,\n44-120 Pyskowice,\ntel. 32 233 23 55,\n\nopspysko@oho.com.pl,\nwww.ops.pyskowice.pl","Poniedziałek, Wtorek, Środa \nod 7.30 do 15.30,\n Czwartek\nod 7.30 do 17.30,\n Piątek\n7.30 - 13.30.","Pomocy społecznej udziela się osobom i rodzinom w szczególności z powodu:\n1. ubóstwa;\n2. sieroctwa;\n3. bezdomności;\n4. bezrobocia;\n5. niepełnosprawności;\n6. długotrwałej lub ciężkiej choroby;\n7. przemocy w rodzinie;\n8. potrzeby ochrony ofiar handlu ludźmi;\n9. potrzeby ochrony macierzyństwa lub wielodzietności;\n10. bezradności w sprawach opiekuńczo-wychowawczych i prowadzenia gospodarstwa domowego, zwłaszcza w rodzinach niepełnych lub wielodzietnych;\n11. trudności w integracji cudzoziemców, którzy uzyskali w Rzeczypospolitej Polskiej status uchodźcy lub ochronę uzupełniającą;\n12. trudności w przystosowaniu do życia po zwolnieniu z zakładu karnego;\n13. alkoholizmu lub narkomanii;\n14. zdarzenia losowego i sytuacji kryzysowej;\n15. klęski żywiołowej lub ekologicznej.\nRejonizacja - Gmina Pyskowice.","Ośrodek przystosowany\ndla osób niepełnosprawnych - \nwinda."]
["Publiczna","Ośrodek Pomocy Społecznej\n w Gierałtowicach","Poradnictwo rodzinne. \nPomoc socjalna. \nWspółpraca pracownika socjalnego z osobą doświadczającą przemocy. \nW ramach Zespołu Interdyscyplinarnego motywowanie osób stosujących przemoc do zmiany zachowania i uczestnictwa w programie korekcyjno-edukacyjnym.","ul Powstańców Śląskich 1,\n 44-186 Gierałtowice,\ntel. 32/30 11 527,\n32/30 11 528,\n\nops@gieraltowice.pl","Poniedziałek, Wtorek, Środa\n od 7.00 do 15.00\nCzwartek \ngodz. 7.00 - 17.00\nPiątek \ngodz. 7.00 - 13.00","Pomocy społecznej udziela się osobom i rodzinom w szczególności z powodu:\n1. ubóstwa;\n2. sieroctwa;\n3. bezdomności;\n4. bezrobocia;\n5. niepełnosprawności;\n6. długotrwałej lub ciężkiej choroby;\n7. przemocy w rodzinie;\n8. potrzeby ochrony ofiar handlu ludźmi;\n9. potrzeby ochrony macierzyństwa lub wielodzietności;\n10. bezradności w sprawach opiekuńczo-wychowawczych i prowadzenia gospodarstwa domowego, zwłaszcza w rodzinach niepełnych lub wielodzietnych;\n11. trudności w integracji cudzoziemców, którzy uzyskali w Rzeczypospolitej Polskiej status uchodźcy lub ochronę uzupełniającą;\n12. trudności w przystosowaniu do życia po zwolnieniu z zakładu karnego;\n13. alkoholizmu lub narkomanii;\n14. zdarzenia losowego i sytuacji kryzysowej;\n15. klęski żywiołowej lub ekologicznej.\nRejonizacja - Gmina Gierałtowice.\n\n","Ośrodek przystosowany\ndla osób niepełnosprawnych - \nwinda."]
["Publiczna","Ośrodek Pomocy Społecznej\n w Rudzińcu \nz siedzibą w Pławniowicach","Poradnictwo rodzinne. \n\nPomoc socjalna.\n\nPraca w ramach Zespołu Interdyscyplinarnego i Grup roboczych. \n\nWspółpraca pracownika socjalnego z osobą doświadczającą przemocy. \n\nW ramach Zespołu Interdyscyplinarnego motywowanie osób stosujących przemoc do zmiany zachowania i uczestnictwa w programie korekcyjno-edukacyjnym.\n\nPomoc prawna i psychologiczna.","ul. Gliwicka 50,\n44-171 Pławniowice,\ntel. 32/400 07 71,\n 32/400 07 75,\n\nopsrudziniec@wp.pl\nwww.opsrudziniec.pl","Poniedziałek, Wtorek, Środa\n od 7.30 -do 15.30\nCzwartek  \n7.30 - 17.30\nPiątek  \n7.30 - 13.30","Pomocy społecznej udziela się osobom i rodzinom w szczególności z powodu:\n1. ubóstwa;\n2. sieroctwa;\n3. bezdomności;\n4. bezrobocia;\n5. niepełnosprawności;\n6. długotrwałej lub ciężkiej choroby;\n7. przemocy w rodzinie;\n8. potrzeby ochrony ofiar handlu ludźmi;\n9. potrzeby ochrony macierzyństwa lub wielodzietności;\n10. bezradności w sprawach opiekuńczo-wychowawczych i prowadzenia gospodarstwa domowego, zwłaszcza w rodzinach niepełnych lub wielodzietnych;\n11. trudności w integracji cudzoziemców, którzy uzyskali w Rzeczypospolitej Polskiej status uchodźcy lub ochronę uzupełniającą;\n12. trudności w przystosowaniu do życia po zwolnieniu z zakładu karnego;\n13. alkoholizmu lub narkomanii;\n14. zdarzenia losowego i sytuacji kryzysowej;\n15. klęski żywiołowej lub ekologicznej.\nRejonizacja - Gmina Rudziniec","Ośrodek przystosowany\ndla osób niepełnosprawnych - \npodjazd, winda."]
["Publiczna","Ośrodek Pomocy Społecznej\n w Sośnicowicach","Poradnictwo rodzinne.\n\nPomoc socjalna. \n\nPraca w ramach Zespołu Interdyscyplinarnego i grup roboczych.\n\nWspółpraca pracownika socjalnego z osoba doświadczającą przemocy. \n\nW ramach Zespołu Interdyscyplinarnego motywowanie osób stosujących przemoc do zmiany zachowania\n i uczestnictwa w programie  korekcyjno - edukacyjnym. \n\nWspółpraca z GKRPA. \n\nPomoc psychologiczna.","ul. Szprynek 1,\n44-153 Sośnicowice,\ntel. 32 428 51 80,\nops@sosnicowice.pl,\n\nwww.sosnicowice.pl/ jednostki/ops-sosnicowice.html","\n\nPoniedziałek \nod 07:30 do17:00\n Wtorek -  Czwartek \nod 07:30 do 15:30\nPiątek\n 07:30 - 14:00\n","Pomocy społecznej udziela się osobom i rodzinom w szczególności z powodu:\n1. ubóstwa;\n2. sieroctwa;\n3. bezdomności;\n4. bezrobocia;\n5. niepełnosprawności;\n6. długotrwałej lub ciężkiej choroby;\n7. przemocy w rodzinie;\n8. potrzeby ochrony ofiar handlu ludźmi;\n9. potrzeby ochrony macierzyństwa lub wielodzietności;\n10. bezradności w sprawach opiekuńczo-wychowawczych i prowadzenia gospodarstwa domowego, zwłaszcza w rodzinach niepełnych lub wielodzietnych;\n11. trudności w integracji cudzoziemców, którzy uzyskali w Rzeczypospolitej Polskiej status uchodźcy lub ochronę uzupełniającą;\n12. trudności w przystosowaniu do życia po zwolnieniu z zakładu karnego;\n13. alkoholizmu lub narkomanii;\n14. zdarzenia losowego i sytuacji kryzysowej;\n15. klęski żywiołowej lub ekologicznej.\nRejonizacja - Gmina Sośnicowice.","Ośrodek przystosowany\ndla osób niepełnosprawnych - \npodjazd."]
["Publiczna","Ośrodek Pomocy Społecznej\n w Toszku, \nPunkt Pomocy Rodzinie","Praca w ramach zespołu  interdyscyplinarnego i grup roboczych. \n\nW ramach Zespołu Interdyscyplinarnego motywowanie  osób stosujących się do zmiany zachowania i uczestnictwa w programie korekcyjno-edukacyjnym.\n\nPomoc prawna i psychologiczna. \n\nWspółpraca z Gminną komisją rozwiązywania problemów alkoholowych (GKRPA). \n\nProgramy  opiekuńczo-wychowawcze dla dzieci. \n\nPomoc terapeuty uzależnień, pedagoga i prawnika.","ul. Rynek 5,\n44-180 Toszek,\ntel. 32 332 67 02,\n32 332 67 02,\n32 332 67 14,\nsekretariat@ops.toszek.pl,\nwww.ops.toszek.pl","Poniedziałek, Wtorek, Środa \nod 7:00 -do 15:00\nCzwartek od 7:00 do 17:00\nPiątek od 7:00 do 13:00","Pomocy społecznej udziela się osobom i rodzinom w szczególności z powodu:\n1. ubóstwa;\n2. sieroctwa;\n3. bezdomności;\n4. bezrobocia;\n5. niepełnosprawności;\n6. długotrwałej lub ciężkiej choroby;\n7. przemocy w rodzinie;\n8. potrzeby ochrony ofiar handlu ludźmi;\n9. potrzeby ochrony macierzyństwa lub wielodzietności;\n10. bezradności w sprawach opiekuńczo-wychowawczych i prowadzenia gospodarstwa domowego, zwłaszcza w rodzinach niepełnych lub wielodzietnych;\n11. trudności w integracji cudzoziemców, którzy uzyskali w Rzeczypospolitej Polskiej status uchodźcy lub ochronę uzupełniającą;\n12. trudności w przystosowaniu do życia po zwolnieniu z zakładu karnego;\n13. alkoholizmu lub narkomanii;\n14. zdarzenia losowego i sytuacji kryzysowej;\n15. klęski żywiołowej lub ekologicznej.\nRejonizacja - Gmina Toszek."]
["Publiczna","Ośrodek Pomocy Społecznej\n w Wielowsi","Pomoc socjalna. \n\nPraca w ramach Zespołu Interdyscyplinarnego i grup roboczych. \n\nWspółpraca pracownika socjalnego z osobą doświadczającą przemocy. \n\nW ramach Zespołu Interdyscyplinarnego motywowanie osób stosujących się do zmiany zachowania i uczestnictwa w programie korekcyjno-edukacyjnym.\n\nPomoc prawna i psychologiczna. \n\nWspółpraca z gminną komisją rozwiązywania problemów alkoholowych (GKRPA).","ul. Główna 1\n44-187 Wielowieś,\ntel. 32 233 60 58","Poniedziałek -  Środa\n od 7:00 do 15:00\nCzwartek\n od 7:00 do 17:00\nPiątek\n od  7:00 do 13:00","Pomocy społecznej udziela się osobom i rodzinom w szczególności z powodu:\n1. ubóstwa;\n2. sieroctwa;\n3. bezdomności;\n4. bezrobocia;\n5. niepełnosprawności;\n6. długotrwałej lub ciężkiej choroby;\n7. przemocy w rodzinie;\n8. potrzeby ochrony ofiar handlu ludźmi;\n9. potrzeby ochrony macierzyństwa lub wielodzietności;\n10. bezradności w sprawach opiekuńczo-wychowawczych i prowadzenia gospodarstwa domowego, zwłaszcza w rodzinach niepełnych lub wielodzietnych;\n11. trudności w integracji cudzoziemców, którzy uzyskali w Rzeczypospolitej Polskiej status uchodźcy lub ochronę uzupełniającą;\n12. trudności w przystosowaniu do życia po zwolnieniu z zakładu karnego;\n13. alkoholizmu lub narkomanii;\n14. zdarzenia losowego i sytuacji kryzysowej;\n15. klęski żywiołowej lub ekologicznej.\nRejonizacja - Gmina Wielowieś."]

{"sheet":"PRZEMOC DOMOWA","index":4,"n_rows":6,"n_cols":7,"rows_kept":6,"cut":false,"hidden":false,"merged":[[0,1,0,6]]}
[null,"PRZECIW DZIAŁANIE PRZEMOCY DOMOWEJ"]
["POWRÓT DO LISTY","Nazwa jednostki",{"$f":"UPPER(\"zakres poradnictwa\")","v":"ZAKRES PORADNICTWA"},"Adres\ntelefon\nwww, e-mail","Dni i godziny pracy",{"$f":"UPPER(\"kryteria dostepu do usługi\")","v":"KRYTERIA DOSTEPU DO USŁUGI"},"Uwagi"]
["Publiczna","Ogólnopolskie Pogotowie dla Ofiar Przemocy w Rodzinie - Niebieska Linia","\nPomoc psychologiczna\nPomoc prawna\nOgólnopolska poradnia mailowa\nOgólnopolska poradnia telefoniczna\nOśrodek dla osób pokrzywdzonych przestępstwem\nDziałania szkoleniowe i doradcze dla organizacji państwowych (m. in. Ministerstwa, Policja) oraz dla osób prywatnych\n\n","Al. Jerozolimskie 155\n02-326 Warszawa\ninfolinia 800 120 002\ntel. do sekretariatu 22 666-10-36\ne-mail: biuro@niebieskalinia.info\n\nwww.niebieskalinia.info\n\nlub listowną pod adresem \nAl. Jerozolimskie 155 02-326 Warszawa.","Konsultacje w sprawie przemocy prowadzione wyłącznie drogą telefoniczną pod numerem infolinii\n\nSekretariat czynny w godzinach:\nponiedziałek-piątek 8.00 - 16.00\n\nniebieskalinia@niebieskalinia.info ","Dla osób doświadczających  przemocy domowej\n\n"]
["Publiczna","Komisariat Policji w Knurowie","Prowadzenie Niebieskich Kart, udział w Zespole Interdyscyplinarnym, motywowanie sprawcy do podjęcia terapii","ul. Dworcowa 1 \n44-194 Knurów,\ntel. 32 337 25 00,\n\nknurow@gliwice.ka.policja.gov.pl","Całą dobę","\nRejonizacja - Gmina Knurów, Pilchowice, Gierałtowice\n\nKażdy, kto jest świadkiem przemocy w rodzinie.\nKażdy pokrzywdzony w wyniku przestępstwa.\nKażdy, kogo najbliższa osoba (na przykład członek rodziny, osoba pozostająca pod stałą opieką) została pokrzywdzona w wyniku przestępstwa.\nPokrzywdzony to osoba, której w wyniku przestępstwa zostało naruszone lub zagrożone chronione prawem dobro — zdrowie, nietykalność cielesna, własność, cześć, dobre imię, wolność seksualna."]
["Publiczna","Komisariat Policji w Pyskowicach","Prowadzenie Niebieskich Kart, udział w Zespole Interdyscyplinarnym, motywowanie sprawcy do podjęcia terapii","ul. Kard. St. Wyszyńskiego 24a\n44-120 Pyskowice,\ntel. 32 300 85 50,\n\npyskowice@gliwice.ka.policja.gov.pl","Całą dobę","Obywatele RP\nRejonizacja - Gmina Pyskowice, Toszek, Rudziniec, Wielowieś\n\nKażdy, kto jest świadkiem przemocy w rodzinie.\nKażdy pokrzywdzony w wyniku przestępstwa.\nKażdy, kogo najbliższa osoba (na przykład członek rodziny, osoba pozostająca pod stałą opieką) została pokrzywdzona w wyniku przestępstwa.\nPokrzywdzony to osoba, której w wyniku przestępstwa zostało naruszone lub zagrożone chronione prawem dobro — zdrowie, nietykalność cielesna, własność, cześć, dobre imię, wolność seksualna."]
["Publiczna","Komisariat I Policji w Gliwicach","Prowadzenie Niebieskich Kart, udział w Zespole Interdyscyplinarnym, motywowanie sprawcy do podjęcia terapii","ul. Kościelna 2\n44-100 Gliwice,\ntel. 32 680 01 00,\nkp1@gliwice.ka.policja.gov.pl","Całą dobę","Obywatele RP\nRejonizacja - Gmina Sośnicowice\n\nKażdy, kto jest świadkiem przemocy w rodzinie.\nKażdy pokrzywdzony w wyniku przestępstwa.\nKażdy, kogo najbliższa osoba (na przykład członek rodziny, osoba pozostająca pod stałą opieką) została pokrzywdzona w wyniku przestępstwa.\nPokrzywdzony to osoba, której w wyniku przestępstwa zostało naruszone lub zagrożone chronione prawem dobro — zdrowie, nietykalność cielesna, własność, cześć, dobre imię, wolność seksualna."]

{"sheet":"PROBLEM UZALEŻNIEŃ","index":5,"n_rows":10,"n_cols":7,"rows_kept":10,"cut":false,"hidden":false,"merged":[[0,1,0,6]]}
[null,"ROZWIĄZYWANIE PROBLEMÓW ALKOCHOLOWYCH I INNYCH UZALEŻNIEŃ"]
["POWRÓT DO LISTY","Nazwa jednostki",{"$f":"UPPER(\"zakres poradnictwa\")","v":"ZAKRES PORADNICTWA"},"Adres\ntelefon\nwww, e-mail","Dni i godziny pracy",{"$f":"UPPER(\"kryteria dostepu do usługi\")","v":"KRYTERIA DOSTEPU DO USŁUGI"},"Uwagi"]
["Publiczna","Gminna Komisja Rozwiązywania Problemów Alkoholowych w Knurowie","Diagnoza osób uzależnionych, kierowanie na leczenie odwykowe (dotyczy diagnozy i leczenia osób stosujących przemoc). Wsparcie i pomoc osobom uzależnionym i ich rodzinom","ul. Floriana Ogana 5\n44-194 Knurów,\ntel. 32 339 23 11,\npz@knurow.pl","Wizyty po uprzedniej rejestracji\n telefonicznej","Osoby zamieszkujące Gminę Knurów \n"]
["Publiczna","Miejsko-Gminna Komisja Rozwiązywania Problemów Alkoholowych w Toszku","Inicjowanie działań w zakresie realizacji zadań własnych gminy związanych z profilaktyką i rozwiązywaniem problemów alkoholowych ujęte w formie gminnych programów.\n\nPodejmowanie czynności zmierzających do orzeczenia o zastosowaniu wobec osoby uzależnionej od alkoholu obowiązku poddania się leczeniu w zakładzie lecznictwa odwykowego.\n\nOpiniowanie wydawania zezwoleń na sprzedaż lub podawanie napojów alkoholowych pod względem zgodności lokalizacji punktu sprzedaży z uchwałami rady gminy, o których mowa w art. 12 ust. 1 i 2 ustawy (limit i lokalizacja punktów, w których sprzedawane i podawane są napoje alkoholowe).\n\nKontrola przestrzegania zasad i warunków korzystania z zezwoleń na sprzedaż lub podawanie napojów alkoholowych (na podstawie upoważnienia wystawionego przez wójta, burmistrza lub prezydenta miasta, art. 18 ust. 8 ustawy).","ul. Bolesława Chrobrego 2\n44-180 Toszek\ntel. 32 332 67 02,\n32 332 67 14","Wizyty po uprzedniej rejestracji\n telefonicznej","Osoby zamieszkujące Gminę Toszek"]
["Publiczna","Punkt Konsultacyjny dla osób uzależnionych,  współuzależnionych ofiar przemocy domowej oraz tel. zaufania","Wsparcie i pomoc osobom uzależnionym i ich rodzinom oraz osobom doświadczającym przemocy. Pomoc prawna dla osób uzależnionych","ul. Główna 47\n44-187 Wielowieś\ntel. 32 233 66 70","Wizyty po uprzedniej rejestracji\n telefonicznej","Osoby zamieszkujące Gminę Wielowieś"]
["Publiczna","Gminna Komisja Rozwiązywania Problemów Alkoholowych w Sośnicowicach","Diagnoza osób uzależnionych, kierowanie na leczenie odwykowe (dotyczy diagnozy i leczenia osób stosujących przemoc). \nWsparcie i pomoc osobom uzależnionym i ich rodzinom","ul. Rynek 19\n44-153 Sośnicowice,\ntel. 32 238 71 91,","Wizyty po uprzedniej rejestracji\n telefonicznej","Osoby zamieszkujące Gminę Sośnicowice"]
["Publiczna","Gminna Komisja Rozwiązywania Problemów Alkoholowych w Rudzińcu","Diagnoza osób uzależnionych, kierowanie na leczenie odwykowe (dotyczy diagnozy i leczenia osób stosujących przemoc). \nWsparcie i pomoc osobom uzależnionym i ich rodzinom","ul. Gliwicka 26\n44-160 Rudziniec,\ntel. 32 400 07 72,\nopsrudziniec@wp.pl","Poniedziałek -  Środa:\n od 7.30 -do 15.30\nCzwartek  7.30 - 17.30\nPiątek  7.30 - 13.30","Osoby zamieszkujące Gminę Rudziniec"]
["Publiczna","Gminna Komisja Rozwiązywania Problemów Alkoholowych w Gierałtowicach","Diagnoza osób uzależnionych, kierowanie na leczenie odwykowe (dotyczy diagnozy i leczenia osób stosujących przemoc). \nWsparcie i pomoc osobom uzależnionym i ich rodzinom","ul. Ks. Roboty 48\n44-186 Gierałtowice,\ntel. 32 301 13 01","Wizyty po uprzedniej rejestracji\n telefonicznej","Osoby zamieszkujące Gminę Gierałtowice"]
["Publiczna","Gminna Komisja Rozwiązywania Problemów Alkoholowych w Pyskowicach","Diagnoza osób uzależnionych, kierowanie na leczenie odwykowe (dotyczy diagnozy i leczenia osób stosujących przemoc). \nWsparcie i pomoc osobom uzależnionym i ich rodzinom","ul. Strzelców Bytomskich 3\n44-120 Pyskowice,\ntel. 32 332 60 15,\n32 332 60 60,\nhttps://www.pyskowice.pl/problem-uzaleznien/gminna-komisja-rozwiazywania-problemow alkoholorych.html","Wizyty po uprzedniej rejestracji\n telefonicznej","Osoby zamieszkujące Gminę Pyskowice"]
["Publiczna","Ośrodek rozwiązywania Problemów Alkoholowych Punkt Konsultacyjny","Diagnoza osób uzależnionych, kierowanie na leczenie odwykowe (dotyczy diagnozy i leczenia osób stosujących przemoc). Pomoc psychologiczna i prawna dla osób uzależnionych.","ul. Paderewskiego 5\n44-120 Pyskowice,\ntel. 32 232 19 86,\nwww.pyskowice.pl/problem z uzależnień/gdzie-szukac-pomocy.html","Wizyty po uprzedniej rejestracji\n telefonicznej","Osoby zamieszkujące Gminę Pyskowice"]

{"sheet":"INTERWENCJA KRYZYSOWA","index":6,"n_rows":3,"n_cols":7,"rows_kept":3,"cut":false,"hidden":false,"merged":[[0,1,0,6]]}
[null,"INTERWENCJA KRYZYSOWA"]
["POWRÓT DO LISTY","Nazwa jednostki",{"$f":"UPPER(\"zakres poradnictwa\")","v":"ZAKRES PORADNICTWA"},"Adres\ntelefon\nwww, e-mail","Dni i godziny pracy",{"$f":"UPPER(\"kryteria dostepu do usługi\")","v":"KRYTERIA DOSTEPU DO USŁUGI"},"Uwagi"]
["Publiczna","Centralne Zarządzanie Kryzysowe","Monitorowanie bezpieczeństwa","Rządowe Centrum Bezpieczeństwa \nul. Rakowieckiego 2A\n00-993 Warszawa\n\nCałodobowy dyżur:\n22 361 69 00\n22 785 700 177\n\ndyzurny@rcb.gov.pl","24 godziny na dobę przez 7 dni w tygodniu","Świadek zagrożenia kryzysowego.\nOsoba poszukująca informacji na temat zarządzania kryzysowego.\n\nSytuacja kryzysowa – należy przez to rozumieć sytuację wpływającą negatywnie na poziom bezpieczeństwa ludzi, mienia w znacznych rozmiarach lub środowiska, wywołującą znaczne ograniczenia w działaniu właściwych organów administracji publicznej ze względu na nieadekwatność posiadanych sił i środków","Zarządzanie kryzysowe to działalność organów administracji publicznej będąca elementem kierowania bezpieczeństwem narodowym, która polega na\nzapobieganiu sytuacjom kryzysowym,\nprzygotowaniu do przejmowania nad nimi kontroli w drodze zaplanowanych działań,\nreagowaniu w przypadku wystąpienia sytuacji kryzysowych,\nusuwaniu ich skutków oraz odtwarzaniu zasobów i infrastruktury krytycznej"]

{"sheet":"POMOC DLA OSÓB BEZROBOTNYCH","index":7,"n_rows":8,"n_cols":7,"rows_kept":8,"cut":false,"hidden":false,"merged":[[0,1,0,6]]}
[null,"PORADY DLA OSÓB BEZROBOTNYCH"]
["POWRÓT DO LISTY","Nazwa jednostki",{"$f":"UPPER(\"zakres poradnictwa\")","v":"ZAKRES PORADNICTWA"},"Adres\ntelefon\nwww, e-mail","Dni i godziny pracy",{"$f":"UPPER(\"kryteria dostepu do usługi\")","v":"KRYTERIA DOSTEPU DO USŁUGI"},"Uwagi"]
["Publiczna","Okręgowy Inspektorat Pracy w Katowicach - Oddział w Gliwicach","Poradnictwo w zakresie przestrzegania prawa pracy, w szczególności przepisów i zasad bezpieczeństwa i higieny pracy, a także przepisów dotyczących legalności zatrudnienia i innej pracy zarobkowej.\n","ks. Huberta Hlubka 2,\n 44-100 Gliwice\ntel. 32 332 45 01"," poniedziałek, wtorek,\nczwartek, piątek \n10:00 -14:00.","Osoby zamieszkujące Powiat Gliwicki"]
["Publiczna","Powiatowy Urząd Pracy \nw Gliwicach","Pomoc osobom bezrobotnym, poszukującym pracy, udzielanie informacji o zawodach, szkoleniach, współpraca z pracodawcami, przyjmowanie i upowszechnianie ofert pracy,","plac Inwalidów Wojennych 12\n44-100  Gliwice,\ntel. 32 231 18 41,\n\nsekretariat@pup.gliwice.pl\nwww.pup.gliwice.pl"," Poniedziałek - Piątek \nod 7.30 do 15.30","Powiatowy Urząd Pracy w Gliwicach obejmuje swą właściwością Miasto Gliwice na prawach powiatu oraz Powiat Ziemski Gliwicki\n8 gmin:\ndwie o miejskim charakterze - Knurów \ni Pyskowice;\ndwie miejsko-wiejskie - Sośnicowice i Toszek;\ncztery wiejskie - Gierałtowice, Pilchowice, Rudziniec i Wielowieś."]
["Publiczna","Infolinia Urzędów Pracy\n-Zielona Infolinia","Centrum Informacyjno-Konsultacyjne Służb Zatrudnienia \"Zielona Linia\". Tworzymy urząd, jakiego potrzebujesz – dostępny dla każdego, o każdej porze. W tym celu stworzono szeroki zakres kanałów komunikacji: telefoniczny, mailowy, za pośrednictwem serwisów społecznościowych oraz w formie czatu z konsultantem.","ADRES KORESPONDENCYJNY:\n\nCentrum Informacyjno-Konsultacyjne Służb Zatrudnienia Zielona Linia\nul. Ciepła 40 (budynek E)\n15-472 Białystok\n\nInfolinia dla klientów urzędów pracy: 19524*\n\nwww.zielonalinia.gov.pl\n\n","  Poniedziałek - Piątek \nw godz. 8-18","Mogą korzystać ;\n- zarejestrowani  poszukujący pracy \n- poszukujący pracy \n- pracodawcy","* Infolinia płatna. Opłata za połączenie jest zgodna z taryfą operatora osoby dzwoniącej.\n\nUwaga!\nW niektórych połączeniach z telefonów komórkowych wymagane jest dodanie numeru kierunkowego. Właściwym numerem będzie: 22 19524."]
["Publiczna","Hufce Pracy (HP)\nGliwice","Celem działalności hufca jest pomoc młodzieży w uzyskaniu i podwyższeniu wiedzy ogólnej i kwalifikacji zawodowych w ramach szkoły podstawowej oraz objęcie młodzieży zagrożonej i niedostosowanej społecznie wychowaniem, profilaktyka  i resocjalizacją.","Gliwice\nul. Stefana Okrzei 20\n44-100 Gliwice\nTel./Fax.: (32) 232 15 95\n\nEmail: hpgliwice@vp.pl\n","Poniedziałek - Piątek \nod 07:45 do 15:45","Hufce Pracy (HP) to jednostki organizacyjne OHP przeznaczone dla młodzieży zaniedbanej wychowawczo, nie uczącej się i nie pracującej \nw wieku 15 – 18 lat. "]
["Publiczna","Hufce Pracy (HP)\nPyskowice","Celem działalności hufca jest pomoc młodzieży w uzyskaniu i podwyższeniu wiedzy ogólnej i kwalifikacji zawodowych w ramach szkoły podstawowej oraz objęcie młodzieży zagrożonej i niedostosowanej społecznie wychowaniem, profilaktyka  i resocjalizacją.","\nPyskowice\nul. Strzelców Bytomskich 14\n44-120 Pyskowice\nTel./Fax.: 32 333 20 73\n\nEmail: ohp.pyskowice@wp.pl\n","Poniedziałek - Piątek \nod 07:45 do 15:45","Hufce Pracy (HP) to jednostki organizacyjne OHP przeznaczone dla młodzieży zaniedbanej wychowawczo, nie uczącej się i nie pracującej \nw wieku 15 – 18 lat. "]
["Publiczna","Młodzieżowe Biuro Pracy\n w Katowicach","Młodzieżowe Biura Pracy (MBP) zajmują się pośrednictwem pracy, poradnictwem zawodowym oraz krótkoterminowym zatrudnieniem uczniów szkół ponadpodstawowych/ponadgimnazjalnych i studentów. Poszukują oraz gromadzą oferty pracy stałej i krótkoterminowej, prowadzą ewidencję osób bezrobotnych, tworzą bank informacji o zawodach, udzielają porad na temat możliwości zdobycia zawodu lub reorientacji zawodowej, a także kierują na kursy zawodowe lub przekwalifikujące.","Młodzieżowe Biuro Pracy w Katowicach\nPlac Grunwaldzki 8–10\n40–950 Katowice \nTel.: (32) 209 08 59\nFax.: (32) 258 19 32 \n\nEmail: mbp.katowice@wp.pl","kontakt wyłącznie telefoniczny","Uczniowie szkół ponadgimnazjalnych/ponadpodstawowych, studenci."]

{"sheet":"POKRZYWDZENI PRZESTĘPSTWEM","index":8,"n_rows":6,"n_cols":7,"rows_kept":6,"cut":false,"hidden":false,"merged":[[0,1,0,6]]}
[null,"DLA OSÓB POKRZYWDZONYCH PRZESTĘPSTWEM"]
["POWRÓT DO LISTY","Nazwa jednostki",{"$f":"UPPER(\"zakres poradnictwa\")","v":"ZAKRES PORADNICTWA"},"Adres\ntelefon\nwww, e-mail","Dni i godziny pracy",{"$f":"UPPER(\"kryteria dostepu do usługi\")","v":"KRYTERIA DOSTEPU DO USŁUGI"},"Uwagi"]
["Publiczna","Ubezpieczeniowy Funduszu Gwarancyjny","Ubezpieczeniowy Funduszu Gwarancyjny zajmuje się wypłatą odszkodowań niewinnym ofiarom wypadków - spowodowanych przez nieubezpieczonych właścicieli pojazdów  oraz nieubezpieczonych rolników.\n\nUFG wypłaca również odszkodowania osobom poszkodowanym, w przypadku gdy sprawca wypadku drogowego uciekł z miejsca zdarzenia i jest nieznany.","www.ufg.pl\n\nUBEZPIECZENIOWY FUNDUSZ GWARANCYJNY\n\nul. Płocka 9/11\n01-231 Warszawa\n\nTEL +48 22 53 96 100\n(opłata za połączenie wg taryfy operatora)\n","Centrum Obsługi Klienta\n\nGodziny pracy: 8:00 - 17:00\n(w dni powszednie)"," ofiary wypadków - spowodowanych przez nieubezpieczonych właścicieli pojazdów  oraz nieubezpieczonych rolników. \nUFG wypłaca również odszkodowania osobom poszkodowanym, w przypadku gdy sprawca wypadku drogowego uciekł z miejsca zdarzenia i jest nieznany.","Ubezpieczeniowy Fundusz Gwarancyjny, zwany dalej „Funduszem”, działa na podstawie przepisów ustawy z dnia 22 maja 2003 r. o ubezpieczeniach obowiązkowych, Ubezpieczeniowym Funduszu Gwarancyjnym i Polskim Biurze Ubezpieczycieli Komunikacyjnych (Dz. U. z 2013 r. poz. 392, z późn. zm.), zwanej dalej „ustawą” oraz na podstawie niniejszego Statutu. "]
["Organizacja\nPozarządowa","Stowarzyszenie Cztery Pory Roku","Działania na rzecz bezpieczeństwa, edukacji i aktywności obywatelskiej, poszukiwanie osób zaginionych, przeciwdziałanie pedofilii.","ul. Dworcowa 38 a/101\n44-194 Knurów,\ntel. 609 108 694,\n\nbiuro@scpr.org.pl,\nwww.scpr.org.pl","Wizyty po uprzedniej rejestracji\n telefonicznej","Rejonizacja - mieszkańcy Gminy Knurów"]
["Organizacja\nPozarządowa","Stowarzyszenie na rzecz \nPrzeciwdziałania Przemocy\n w Rodzinie „Nadzieja”","Działania na rzecz osób poszkodowanych przestępstwem, pomoc w prowadzeniu spraw sądowych i administracyjnych, pomoc osadzonym \nw przejściu do życia po odbyciu kary.","ul. Studzienna 6\n44-100 Gliwice\ntel. 518-174-361\nnadzieja-stowarzyszenie@wp.pl","Kontakt telefoniczny lub mailowy","Obywatele RP"]
["Organizacja\nPozarządowa","Ośrodek Pomocy Pokrzywdzonych przestępstwem\n\nFundacja Obrony Praw Człowieka 'Dura Lex, Sed Lex'\nOśrodek Pomocy Pokrzywdzonym Przestępstwem","Wsparcie informacyjne, psychologiczne, prawne i finansowe.\n\nPoradnictwo dla osób pokrzywdzonych przestępstwem oraz osób im najbliższym.\n","\nhttp://fopc.org.pl\n\nFundacja Obrony Praw Człowieka 'Dura Lex, Sed Lex' \nPowstańców Śląskich 3/101, \n44-200 Rybnik\n \nkontakt telefoniczny: \n733 785 340\n887 776 778\n603 085 016","czynne w godzinach:\nponiedziałek    10 - 18\nwtorek             12 - 20\nśroda               12 - 20\nczwartek           9 - 17\npiątek               9 - 17\nsobota             10 - 14","\nW ramach prowadzonego Ośrodka Pomocy Pokrzywdzonym Przestępstwem, pokrzywdzeni, świadkowie i ich najbliżsi mogą otrzymać pomoc prawną, psychologiczną, psychiatryczną, a także pomoc finansową w zakresie:\nzakupu lub refundacji żywności, odzieży, bielizny, środków czystości i higieny osobistej,\ndopłat do bieżących zobowiązań czynszowych i opłat za energię cieplną, gaz, wodę, wywóz nieczystości, finansowania kosztów zorganizowanego wyjazdu uprawnionego małoletniego, finansowania kosztów wyjazdu osoby uprawnionej wraz z małoletnim nad którym opiekę sprawuje"]

{"sheet":"PRAWO KONSUMENCKIE","index":9,"n_rows":4,"n_cols":7,"rows_kept":4,"cut":false,"hidden":false,"merged":[[0,1,0,6]]}
[null,"PRAWO KONSUMENCKIE"]
["POWRÓT DO LISTY","Nazwa jednostki",{"$f":"UPPER(\"zakres poradnictwa\")","v":"ZAKRES PORADNICTWA"},"Adres\ntelefon\nwww, e-mail","Dni i godziny pracy",{"$f":"UPPER(\"kryteria dostepu do usługi\")","v":"KRYTERIA DOSTEPU DO USŁUGI"},"Uwagi"]
["Publiczna","Biuro Powiatowego Rzecznika Konsumentów","Pomoc prawna z zakresu poradnictwa konsumenckiego i informacji prawnej w zakresie ochrony interesów konsumentów.","ul. Zygmunta Starego 17,\n44-100 Gliwice,\ntel.  32 331 69 26,\n\nrzecznik.konsumentow@starostwo.gliwice.pl","Poniedziałek - Środa\n od 7.30 do 15.00\nCzwartek \nod 7.30 do 17.00\nPiątek\n od 7.30 do 13.00","Osoby zamieszkująca Powiat Gliwicki"]
["Publiczna","Urząd Ochrony Konkurencji i Konsumentów","Ochrona praw konsumenckich","UOKiK\nPL. Powstańców Warszawy 1\n00-950 Warszawa","Poniedziałek - Środa\n od 7.30 do 15.00\nCzwartek \nod 7.30 do 17.00\nPiątek\n od 7.30 do 13.00","Osoby zamieszkująca Powiat Gliwicki"]

{"sheet":"PRAWA PACJENTA","index":10,"n_rows":4,"n_cols":7,"rows_kept":4,"cut":false,"hidden":false,"merged":[[0,1,0,6]]}
[null,"PRAWA PACJENTA"]
["POWRÓT DO LISTY","Nazwa jednostki",{"$f":"UPPER(\"zakres poradnictwa\")","v":"ZAKRES PORADNICTWA"},"Adres\ntelefon\nwww, e-mail","Dni i godziny pracy",{"$f":"UPPER(\"kryteria dostepu do usługi\")","v":"KRYTERIA DOSTEPU DO USŁUGI"},"Uwagi"]
["Publiczna","Narodowy Fundusz Zdrowia - Oddział w Katowicach ",null,"\nŚląski Oddział Wojewódzki NFZ\nul. Kossutha 13, 40-844 Katowice\n\nTelefoniczna Informacja Pacjenta\n800 190 590\nDziała od 8:00 do 16:00\nfax. 32 735 15 71\n\ne-mail: kancelaria@nfz-katowice.pl\nhttp://www.nfz-katowice.pl","w dni robocze\n\nponiedziałek - 8:00 - 16:00\nwtorek - 8:00 - 18:00\nśroda - 8:00 - 16:00\nczwartek - 8:00 - 16:00\npiątek - 8:00 - 16:00\n\n","Obywatele RP"]
["Publiczna","Rzecznik Praw Pacjenta","Pomoc prawna z zakresu praw pacjenta do świadczeń zdrowotnych.\n\n\n\n\n","ul. Młynarska 46\n01-171 Warszawa,\ntel. 22 532 - 82 - 50,\n(infolinia 800 - 190 - 590,\n 8.00 do 18.00)\n\nkancelaria@rpp.gov.pl","\nPoniedziałek  \nod 9.00 do 18.00\nWtorek -  Piątek  \nod 9.00 do 15.00\n    \nSzczegółowe informacje w zakresie sposobu składania skarg i wniosków oraz informacje o systemie ubezpieczeń społecznych ul. Kossutka 13 Katowice\ntel. 32 735 05 45\npn. - pt. 8.00 - 16.00\n","Z porad można korzystać każdy kto ma poczucie łamania praw pacjenta"]

{"sheet":"PRAWA OBYWATELSKIE I DZIECKA","index":11,"n_rows":8,"n_cols":7,"rows_kept":8,"cut":false,"hidden":false,"merged":[[0,1,0,6],[4,5,4,6],[4,2,4,4]]}
[null," PRAWA OBYWATELSKIE I PRAWA DZIECKA"]
["POWRÓT DO LISTY","Nazwa jednostki",{"$f":"UPPER(\"zakres poradnictwa\")","v":"ZAKRES PORADNICTWA"},"Adres\ntelefon\nwww, e-mail","Dni i godziny pracy",{"$f":"UPPER(\"kryteria dostepu do usługi\")","v":"KRYTERIA DOSTEPU DO USŁUGI"},"Uwagi"]
["Publiczna","Rzecznik Praw Obywatelskich","Ochrona swoich praw naruszonych przez władzę publiczną (sądy, publiczną służbę zdrowia, szkoły i  uczelnie, policję, urząd gminy itd.)","al. Solidarności 77\n00-090 Warszawa\ntel. 22 55 17 700\n\nbiurorzecznika@brpo.gov.pl ","Poniedziałek \n10.00 - 18.00\n\nWtorek  - Piątek \n8.00 - 16.00 ","Obywatele RP lub cudzoziemiec (jeśli znajduje się pod władzą RP), a także grupa obywateli lub organizacja"]
["Publiczna","Rzecznik Praw Dziecka","Rzecznik praw dziecka doradza w kwestii  prawa do życia i ochrony zdrowia, prawo do wychowania w rodzinie, prawo do godziwych warunków socjalnych, prawo do nauki.","ul. Przemysłowa 30/32 \n00-450 Warszawa,\nkontakt 22 583 66 00\n\nDziecięcy tel. zaufania \n800 12 12 12 \nrpd@brpd.gov.pl","Poniedziałek - Piątek\nod 8.15 do 16.15 \n","Dzieci i Młodzież z całej Polski"]
["Publiczna",null,"WWW.OBYWATEL.GOV.PL",null,null,"Informacje i usługi przyjazne obywatelom\nportal Ministerstwa Cyfryzacji"]
["Publiczna",null,"https://www.mediacja.gov.pl\n\nMediacja to próba doprowadzenia do ugodowego, satysfakcjonującego obie strony rozwiązania konfliktu na drodze dobrowolnych negocjacji prowadzonych przy udziale trzeciej osoby, neutralnej wobec stron i ich konfliktu, czyli mediatora, który wspiera przebieg negocjacji, łagodzi powstające napięcia i pomaga – nie narzucając jednak żadnego rozwiązania – w wypracowaniu kompromisu.","Lista mediatorów z okręgu gliwickiego dostępna jest w Biurze Obsługi Interesantów w dniach i godzinach urzędowania sądu oraz na stonie internetowej - link poniżej:\n\nhttps://gliwice.so.gov.pl/container/mediatorzy/lista_mediatorow_i_osrodkow_mediacji_07.05.2019_aktualna.pdf\n\nwww.gliwice.sr.gov.pl/mediacje,m,mg,3,37","Listy mediatorów są publikowane na stronach internetowych sądów. \nSą również udostępniane zainteresowanym osobom w siedzibach sądów.\n\nInformacje o mediatorach można również znaleźć stronach internetowych ośrodków mediacyjnych.\n\n","Obywatele RP","Kto ponosi koszty mediacji?\n\nw sprawach cywilnych koszty mediacji pokrywają w całości strony.\nW mediacji pozasądowej wysokość kosztów ustalają strony sporu wraz z mediatorem w umowie\no mediację.\n\nW mediacji  ze skierowania sądu koszty mediacji określone są w rozporządzeniu Ministra Sprawiedliwości z dnia 30 listopada 2005 r. w sprawie wysokości wynagrodzenia i podlegających zwrotowi wydatków mediatora w postępowaniu cywilnym.  \n\nW sprawach karnych i nieletnich koszty mediacji pokrywa Skarb Państwa\nhttp://www.ms.gov.pl/pl/dzialalnosc/mediacje/kampania-mediacyjna-2011-2012/audycje-radiowe/ - mediator pilnie poszukiwany  "]
["Organizacja\nPozarządowa","Międzynarodowa Organizacja Amnesty International","Ochrona praw człowieka w kraju i za granicą, pomoc prawna, pomoc finansowa","plac Joachima Lelewela 8 \n01-624 Warszawa\ntel. 22 827 60 00,\n\nwww.amnesty.org.pl","Poniedziałek - Piątek \n od 9.00 do 17.00","Obywatele RP lub cudzoziemiec,\na także grupa obywateli lub organizacja"]
["Organizacja\nPozarządowa","Międzynarodowa Organizacja Amnesty International","Ochrona praw człowieka w kraju i za granicą, pomoc prawna, pomoc finansowa","plac Joachima Lelewela 8 \n01-624 Warszawa\ntel. 22 827 60 00,\n\nwww.amnesty.org.pl","Poniedziałek - Piątek \n od 9.00 do 17.00","Obywatele RP lub cudzoziemiec,\na także grupa obywateli lub organizacja"]

{"sheet":"PRAWO UBEZPIECZEŃ SPOŁECZNYCH","index":12,"n_rows":3,"n_cols":7,"rows_kept":3,"cut":false,"hidden":false,"merged":[[0,1,0,6]]}
[null,"PRAWO UBEZPIECZEŃ SPOŁECZNYCH"]
["POWRÓT DO LISTY","Nazwa jednostki",{"$f":"UPPER(\"zakres poradnictwa\")","v":"ZAKRES PORADNICTWA"},"Adres\ntelefon\nwww, e-mail","Dni i godziny pracy",{"$f":"UPPER(\"kryteria dostepu do usługi\")","v":"KRYTERIA DOSTEPU DO USŁUGI"},"Uwagi"]
["Publiczna","\n\nCentrum Obsługi Telefonicznej (COT)","Zakres informacji:\n- pomoc techniczna\n- składki\n- renty i emerytury\n- zasiłki\n- informacje dla ubezpieczonych","Infolinia ZUS 22 560 16 00\n\n* koszt połączenia wg umowy klienta z operatorem telekomunikacyjnym\n\nPo połączeniu usłyszysz komunikat powitalny. Możesz wybrać jedną z następujących opcji (wybierz w tym celu odpowiednią cyfrę na klawiaturze numerycznej telefonu):\n\n1 – możesz odsłuchać komunikaty informacyjne z wybranego zakresu funkcjonowania ZUS\n(24 godziny na dobę przez 7 dni w tygodniu),\n2 – możesz się uwierzytelnić,\n3 – uzyskasz dane adresowe placówek ZUS,\n0 – połączysz się z konsultantem COT po wybraniu zakresu rozmowy.","Konsultanci COT są dostępni \npon. - pt. w godz. 7.00 - 18.00.\n\nadres e-mail do zapytań ogólnych: \ncot@zus.pl","Adresaci porad\n- ubezpieczeni\n- ołatnicy"]

{"sheet":"PRAWO PRACY","index":13,"n_rows":4,"n_cols":7,"rows_kept":4,"cut":false,"hidden":false,"merged":[[0,1,0,6]]}
[null,"PRAWO PRACY"]
["POWRÓT DO LISTY","Nazwa jednostki",{"$f":"UPPER(\"zakres poradnictwa\")","v":"ZAKRES PORADNICTWA"},"Adres\ntelefon\nwww, e-mail","Dni i godziny pracy",{"$f":"UPPER(\"kryteria dostepu do usługi\")","v":"KRYTERIA DOSTEPU DO USŁUGI"},"Uwagi"]
["Publiczna","Centrum Poradnictwa Państwowej Inspekcji Pracy. ","Porad prawnych z zakresu prawa pracy udziela Centrum Poradnictwa Państwowej Inspekcji Pracy. ","ul. Barska 28/30 \n02-315 Warszawa\n\ntel. 22 391 82 15\n\nfax. 22 391 82 14\ne-mail: kancelaria@gip.pip.gov.pl\n\nhttp://www.bip.pip.gov.pl","Porady są udzielane od poniedziałku do piątku w godz. od 9.00 do 15.00\n\ndla osób dzwoniących z telefonów stacjonarnych - 801 002 006\ndla osób dzwoniących z telefonów komórkowych - 459 599 000 \n\n(Koszt połączenia zależny jest od stawek operatora telekomunikacyjnego. Koszty naliczane są od momentu połączenia z infolinią, tj. również za czas oczekiwania)."]
["Publiczna","Okręgowy Inspektorat Pracy \nw Katowicach","Porady prawne z zakresu prawa pracy.","\n\nul. Owocowa 6-6a\n40-158 Katowice\ntel. (32) 60 41 208\nfax (32) 60 41 250\n\nkancelaria@katowice.pip.gov.pl\nwww.katowice.pip.gov.pl\n\n","godziny otwarcia:\nponiedziałek 07:30 - 15:30\nwtorek 07:30 - 15:30\nśroda 07:30 - 15:30\nczwartek 07:30 - 15:30\npiątek 07:30 - 15:30\nsobota nieczynne\nniedziela nieczynne\n",null,"Państwowa Inspekcja Pracy ma za zadanie egzekwowanie przepisów prawa pracy, w tym bezpieczeństwa i higieny pracy, poprzez efektywne i ukierunkowane kontrole oraz działania prewencyjne, zmierzające do ograniczenia zagrożeń wypadkowych i poszanowania prawa pracy.\n\n"]

{"sheet":"PRAWO PODATKOWE","index":14,"n_rows":4,"n_cols":7,"rows_kept":4,"cut":false,"hidden":false,"merged":[[0,1,0,6],[3,1,4,1],[3,0,4,0],[3,2,4,2],[3,3,4,3],[3,4,4,4],[3,5,4,5],[3,6,4,6]]}
[null,"PRAWO PODATKOWE"]
["POWRÓT DO LISTY","Nazwa jednostki",{"$f":"UPPER(\"zakres poradnictwa\")","v":"ZAKRES PORADNICTWA"},"Adres\ntelefon\nwww, e-mail","Dni i godziny pracy",{"$f":"UPPER(\"kryteria dostepu do usługi\")","v":"KRYTERIA DOSTEPU DO USŁUGI"},"Uwagi"]
["Publiczna","II Urząd Skarbowy \nw Gliwicach","Informacje podatkowe dot. PIT,CIT, VAT, podatki lokalne, akcyza etc.","\nul. Młodego Hutnika 2\n44-100 Gliwice\n \ntel.: 32 33-99-800\nFAX: 32 270-40-17\nemail: sekretariat.2us.gliwice@mf.gov.pl","\nponiedziałek\n 7.00–18.00\nwtorek–piątek\n7.00–15.00\n\nSala Obsługi Podatnika:\nponiedziałek: 7.15–18.00\nwtorek–piątek: 7.15–15.00","powiat gliwicki \nmiasta: Knurów, Pyskowice\ngminy: Gierałtowice, Pilchowice, Rudziniec, Sośnicowice, Toszek, Wielowieś","\nBudynek urzędu skarbowego jest przystosowany do obsługi osób mających trudności w poruszaniu:\n\nprzy wejściu głównym znajduje się podjazd ułatwiający wjazd do budynku\ndrzwi wejściowe szerokie umożliwiają swobodny wjazd wózka inwalidzkiego\nprzed budynkiem wydzielono miejsca parkingowe przeznaczone wyłącznie dla osób niepełnosprawnych\nschody wejściowe wyposażono w poręcze przystosowane dla osób z problemami w poruszaniu\nwindy przystosowano do przewozu osób mających trudności w poruszaniu"]
["Publiczna","Krajowa Informacja Skarbowa","Informacje podatkowe dot. PIT,CIT, VAT, podatki lokalne, akcyza etc.","Dane teleadresowe KIS:\nul. Teodora Sixta 17\n43-300 Bielsko-Biała\n\ntel.: 33 472 79 00\nfax: 33 472 79 04\n\nIformacja podatkowa i celna udzielana pod numerami telefonów:\n\ntelefon stacjonarny 22 330 03 30 \n(z telefonów komórkowych)\n\ntelefon stacjonarny 801 055 055 \n(z telefonów stacjonarnych)\n\ntelefon stacjonarny +48 22 330 03 30\n(z zagranicy)\n\nhttp://www.kis.gov.pl\ne-mail Kancelarii: kancelaria.kis@mf.gov.pl","od poniedziałku do piątku \nw godzinach od 7.00 do 18.00.","Z porad może skorzystać każdy podatnik"]

{"sheet":"RZECZNIK PRAW FINANSOWYCH ","index":15,"n_rows":3,"n_cols":7,"rows_kept":3,"cut":false,"hidden":false,"merged":[[0,1,0,6]]}
[null,"RZECZNIK PRAW FINANSOWYCH - DLA OSÓB BEDĄCYCH W SPORZE Z PODMIOTAMI RYNKU FINSNOWEGO"]
["POWRÓT DO LISTY","Nazwa jednostki",{"$f":"UPPER(\"zakres poradnictwa\")","v":"ZAKRES PORADNICTWA"},"Adres\ntelefon\nwww, e-mail","Dni i godziny pracy",{"$f":"UPPER(\"kryteria dostepu do usługi\")","v":"KRYTERIA DOSTEPU DO USŁUGI"},"Uwagi"]
["Publiczna","Rzecznik Finansowy","Wsparcie  w sporach z podmiotami rynku finansowego od poradnictwa, przez interwencję i postępowania polubowne, aż po wsparcie w trakcie postępowania sądowego.","Al. Jerozolimskie 87\n02-001 Warszawa\ntel. , banki i inne podmioty rynku kapitałowego 22 333 73 25\n (pn. - pt. 8.00 - 16.00),\n\nOFE lub inne formy oszczędzania emerytur \n22 333 73 26, 22 333 73 27 \n(pn. - pt. 11.00 - 15.00),\n\nubezpieczenia - 22 333 73 28 \n(pn. - pt. 8.00 - 18.00).\nwww.rf.gov.pl\n\ne-mail: porady@rf.gov.pl"," Banki i inne podmioty rynku kapitałowego \npn. - pt.\n 8.00 - 16.00,\n\nOFE lub inne formy oszczędzania emerytur  \npn. - pt. \n11.00 - 15.00,\n\nUbezpieczenia \npn. - pt. \n8.00 - 18.00","Obywatele RP"]